[Event "Klatovy Open-C 2024"]
[Site "Klatovy"]
[Date "2024.07.06"]
[Round "8.1"]
[White "Kopta, Pavel"]
[Black "Korsa, Jindrich"]
[Result "1-0"]
[ECO "A86"]
[WhiteElo "2193"]
[BlackElo "2036"]
[Annotator "RC"]
[PlyCount "53"]
[EventDate "2024.06.21"]
[EventType "swiss"]
[EventCountry "CZE"]
[SourceTitle "playchess.com"]
[Source "ChessBase"]
[SourceQuality "1"]
[TimeControl "40/7200:0"]

1. d4 {[%emt 0:00:00]} f5 {[%emt 0:00:00]} 2. g3 {[%emt 0:00:00]} Nf6 {[%emt 0:00:00]} 3. Bg2 {[%emt 0:00:00]} g6 {[%emt 0:00:00]} 4. c4 {[%emt 0:00:00]} Bg7 {[%emt 0:00:00]} 5. Nc3 {[%emt 0:00:11]} d6 {[%emt 0:00:00]} 6. Nh3 {[%emt 0:02:00]} O-O {[%emt 0:02:44]} 7. O-O {[%emt 0:00:04]} c6 {[%emt 0:01:20]} 8. d5 {[%emt 0:01:46]} e5 {[%emt 0:01:27]} 9. Qb3 {[%emt 0:14:26]} c5 {[%emt 0:29:41]} 10. Ng5 {[%emt 0:08:23]} Qe7 {[%emt 0:00:26]} 11. Ne6 {[%emt 0:08:39]} Rf7 {[%emt 0:01:13]} 12. Bg5 {[%emt 0:01:59]} h6 {[%emt 0:08:47]} 13. Bxf6 {[%emt 0:14:19]} Rxf6 {[%emt 0:00:17]} 14. e4 {[%emt 0:00:00]} Na6 {[%emt 0:09:19]} 15. f4 {[%emt 0:01:02]} Nc7 {[%emt 0:03:38]} 16. fxe5 {[%emt 0:02:26]} dxe5 {[%emt 0:00:00]} 17. exf5 {[%emt 0:10:22]} gxf5 {[%emt 0:00:00]} 18. Nxg7 {[%emt 0:01:38]} Kxg7 {[%emt 0:00:00]} 19. Rae1 {[%emt 0:00:16]} Rb8 {[%emt 0:01:53]} 20. Ne2 {[%emt 0:04:37]} Qd6 {[%emt 0:01:21]} 21. Qc3 {[%emt 0:01:07]} Bd7 {[%emt 0:00:01]} 22. Nc1 {[%emt 0:00:20]} e4 {[%emt 0:04:41]} 23. Ne2 {[%emt 0:00:34]} Be8 {[%emt 0:00:00]} 24. Nf4 {[%emt 0:00:59]} b5 {[%emt 0:00:00]} 25. b3 {[%emt 0:00:11]} bxc4 {[%emt 0:00:00]} 26. bxc4 {[%emt 0:00:00]} Bf7 {[%emt 0:00:06]} 27. Bxe4 {[%emt 0:00:20]} 1-0

[Event "Klatovy Open-C 2024"]
[Site "Klatovy"]
[Date "2024.07.06"]
[Round "8.2"]
[White "Chalus, Karel"]
[Black "Zahorbensky, Jaroslav"]
[Result "0-1"]
[ECO "C30"]
[WhiteElo "1982"]
[BlackElo "2032"]
[Annotator "NA RC"]
[PlyCount "70"]
[EventDate "2024.06.21"]
[EventType "swiss"]
[EventCountry "CZE"]
[SourceTitle "playchess.com"]
[Source "ChessBase"]
[SourceQuality "1"]
[TimeControl "40/7200:0"]

1. e4 {[%emt 0:00:00]} e5 {[%emt 0:00:00]} 2. Nc3 {[%emt 0:00:00]} Nc6 {[%emt 0:00:00]} 3. Bc4 {[%emt 0:00:00]} Nf6 {[%emt 0:00:00]} 4. f4 {[%emt 0:00:00]} Bc5 {[%emt 0:00:00]} 5. Nf3 {[%emt 0:00:00]} d6 {[%emt 0:00:00]} 6. d3 {[%emt 0:00:47]} Bg4 {[%emt 0:08:59]} 7. Rf1 {[%emt 0:09:43]} Nd4 {[%emt 0:03:26]} 8. fxe5 {[%emt 0:08:41]} Bxf3 {[%emt 0:00:02]} 9. gxf3 {[%emt 0:01:25]} Nh5 {[%emt 0:01:06]} 10. Be3 {[%emt 0:12:04]} Nxc2+ {[%emt 0:00:35]} 11. Qxc2 {[%emt 0:00:10]} Bxe3 {[%emt 0:00:00]} 12. Nd5 {[%emt 0:03:39]} Bh6 {[%emt 0:05:38]} 13. exd6 {[%emt 0:34:45]} Qxd6 {[%emt 0:00:00]} 14. Rf2 {[%emt 0:07:39]} O-O {[%emt 0:02:32]} 15. Qc3 {[%emt 0:02:05]} c6 {[%emt 0:01:03]} 16. Qb4 {[%emt 0:00:31]} Qxb4+ {[%emt 0:00:39]} 17. Nxb4 {[%emt 0:00:00]} a5 {[%emt 0:00:00]} 18. Nc2 {[%emt 0:02:54]} b5 {[%emt 0:00:00]} 19. Bxb5 {[%emt 0:00:00]} cxb5 {[%emt 0:00:00]} 20. d4 {[%emt 0:00:00]} Rac8 {[%emt 0:00:00]} 21. d5 {[%emt 0:00:00]} Rfd8 {[%emt 0:03:44]} 22. Rd1 {[%emt 0:00:00]} Bf4 {[%emt 0:00:05]} 23. Nd4 {[%emt 0:00:00]} Be3 {[%emt 0:00:01]} 24. Re2 {[%emt 0:00:57]} Bxd4 {[%emt 0:01:38]} 25. Rxd4 {[%emt 0:03:08]} f6 {[%emt 0:02:29]} 26. Red2 {[%emt 0:02:35]} Rd6 {[%emt 0:00:06]} 27. Kf2 {[%emt 0:00:00]} g5 {[%emt 0:03:46]} 28. Kg2 {[%emt 0:02:09]} Nf4+ {[%emt 0:01:08]} 29. Kg3 {[%emt 0:00:00]} Ng6 {[%emt 0:01:52]} 30. Kg4 {[%emt 0:00:11]} Rc1 {[%emt 0:02:31]} 31. Kg3 {[%emt 0:00:54]} h5 {[%emt 0:06:29]} 32. Kg2 {[%emt 0:00:00]} h4 {[%emt 0:04:21]} 33. Kf2 {[%emt 0:00:23]} Kf7 {[%emt 0:00:11]} 34. R4d3 {[%emt 0:00:54]} Ne5 {[%emt 0:09:41]} 35. Ra3 {[%emt 0:00:11]} Nc4 {[%emt 0:00:00]} 0-1

[Event "Klatovy Open-C 2024"]
[Site "Klatovy"]
[Date "2024.07.06"]
[Round "8.3"]
[White "Turner, Radek"]
[Black "Zednik, Zdenek"]
[Result "1/2-1/2"]
[ECO "A34"]
[WhiteElo "2012"]
[BlackElo "1882"]
[Annotator "NA RC"]
[PlyCount "63"]
[EventDate "2024.06.21"]
[EventType "swiss"]
[EventCountry "CZE"]
[SourceTitle "playchess.com"]
[Source "ChessBase"]
[SourceQuality "1"]
[TimeControl "40/7200:0"]

1. c4 {[%emt 0:00:00]} b6 {[%emt 0:03:13]} 2. Nc3 {[%emt 0:00:00]} e6 {[%emt 0:00:11]} 3. e4 {[%emt 0:00:00]} c5 {[%emt 0:00:31]} 4. g3 {[%emt 0:03:46]} Bb7 {[%emt 0:02:40]} 5. Bg2 {[%emt 0:00:00]} Be7 {[%emt 0:07:58]} 6. Nge2 {[%emt 0:01:15]} d6 {[%emt 0:18:02]} 7. d3 {[%emt 0:00:20]} Nf6 {[%emt 0:01:40]} 8. h3 {[%emt 0:00:00]} Nc6 {[%emt 0:05:18]} 9. a3 {[%emt 0:00:00]} O-O {[%emt 0:01:56]} 10. O-O {[%emt 0:00:00]} a6 {[%emt 0:01:09]} 11. Be3 {[%emt 0:00:16]} e5 {[%emt 0:12:45]} 12. Rb1 {[%emt 0:00:29]} Nd4 {[%emt 0:02:08]} 13. f4 {[%emt 0:00:45]} Nd7 {[%emt 0:04:47]} 14. Nd5 {[%emt 0:02:29]} Bxd5 {[%emt 0:03:59]} 15. cxd5 {[%emt 0:01:07]} Nxe2+ {[%emt 0:00:46]} 16. Qxe2 {[%emt 0:00:00]} b5 {[%emt 0:00:34]} 17. b3 {[%emt 0:00:36]} Rc8 {[%emt 0:00:24]} 18. Rfc1 {[%emt 0:01:24]} Bf6 {[%emt 0:07:08]} 19. Rc2 {[%emt 0:04:40]} a5 {[%emt 0:19:36]} 20. Rbc1 {[%emt 0:06:51]} b4 {[%emt 0:03:46]} 21. a4 {[%emt 0:03:05]} Rc7 {[%emt 0:17:53]} 22. Bf3 {[%emt 0:00:30]} exf4 {[%emt 0:00:00]} 23. gxf4 {[%emt 0:00:00]} g5 {[%emt 0:00:00]} 24. Bg4 {[%emt 0:10:13]} gxf4 {[%emt 0:00:00]} 25. Bxf4 {[%emt 0:00:00]} Ne5 {[%emt 0:00:00]} 26. d4 {[%emt 0:02:06]} Nxg4 {[%emt 0:00:00]} 27. Qxg4+ {[%emt 0:03:56]} Kh8 {[%emt 0:00:00]} 28. Qf5 {[%emt 0:01:03]} Bxd4+ {[%emt 0:00:00]} 29. Kh1 {[%emt 0:00:00]} Rg8 {[%emt 0:00:00]} 30. Rg2 {[%emt 0:00:10]} Rxg2 {[%emt 0:00:00]} 31. Kxg2 {[%emt 0:00:00]} f6 {[%emt 0:00:00]} 32. Bh6 {[%emt 1:14:59]} 1/2-1/2

[Event "Klatovy Open-C 2024"]
[Site "Klatovy"]
[Date "2024.07.06"]
[Round "8.4"]
[White "Mlynek, Petr"]
[Black "Hlavac, Rudolf"]
[Result "1-0"]
[ECO "D74"]
[WhiteElo "1969"]
[BlackElo "1927"]
[Annotator "NA RC"]
[PlyCount "61"]
[EventDate "2024.06.21"]
[EventType "swiss"]
[EventCountry "CZE"]
[SourceTitle "playchess.com"]
[Source "ChessBase"]
[SourceQuality "1"]
[TimeControl "40/7200:0"]

1. d4 {[%emt 0:00:00]} Nf6 {[%emt 0:00:00]} 2. c4 {[%emt 0:00:00]} g6 {[%emt 0:00:00]} 3. Nf3 {[%emt 0:00:00]} Bg7 {[%emt 0:00:00]} 4. g3 {[%emt 0:00:00]} O-O {[%emt 0:00:00]} 5. Bg2 {[%emt 0:00:00]} d5 {[%emt 0:00:00]} 6. cxd5 {[%emt 0:00:00]} Nxd5 {[%emt 0:00:00]} 7. O-O {[%emt 0:00:00]} Nc6 {[%emt 0:00:00]} 8. e4 {[%emt 0:00:00]} Nb6 {[%emt 0:00:00]} 9. d5 {[%emt 0:00:00]} Na5 {[%emt 0:00:00]} 10. Qe1 {[%emt 0:00:00]} Nac4 {[%emt 0:00:00]} 11. Nc3 {[%emt 0:00:00]} e5 {[%emt 0:00:43]} 12. b3 {[%emt 0:00:00]} Nd6 {[%emt 0:01:20]} 13. a4 {[%emt 0:00:00]} Bd7 {[%emt 0:03:39]} 14. Qe2 {[%emt 0:00:59]} f5 {[%emt 0:03:45]} 15. Ba3 {[%emt 0:09:48]} f4 {[%emt 0:08:58]} 16. Nd2 {[%emt 0:01:38]} g5 {[%emt 0:04:14]} 17. Rfc1 {[%emt 0:11:20]} Rf6 {[%emt 0:11:46]} 18. Bxd6 {[%emt 0:09:41]} cxd6 {[%emt 0:01:36]} 19. a5 {[%emt 0:02:34]} Nc8 {[%emt 0:05:05]} 20. a6 {[%emt 0:00:00]} b6 {[%emt 0:02:57]} 21. Nb5 {[%emt 0:00:38]} g4 {[%emt 0:02:08]} 22. Bf1 {[%emt 0:02:34]} f3 {[%emt 0:10:42]} 23. Qc4 {[%emt 0:00:00]} h5 {[%emt 0:02:00]} 24. Qc7 {[%emt 0:01:17]} Qxc7 {[%emt 0:07:25]} 25. Nxc7 {[%emt 0:00:59]} Rb8 {[%emt 0:05:01]} 26. Bb5 {[%emt 0:00:00]} Rf7 {[%emt 0:00:02]} 27. Rc2 {[%emt 0:05:07]} Kf8 {[%emt 0:00:58]} 28. Rac1 {[%emt 0:01:20]} Bh6 {[%emt 0:06:23]} 29. Ne6+ {[%emt 0:03:22]} Bxe6 {[%emt 0:02:02]} 30. dxe6 {[%emt 0:00:00]} Bxd2 {[%emt 0:02:04]} 31. Rxc8+ {[%emt 0:00:00]} 1-0

[Event "Klatovy Open-C 2024"]
[Site "Klatovy"]
[Date "2024.07.06"]
[Round "8.5"]
[White "Ondrejat, Miroslav"]
[Black "Navratil, Jiri"]
[Result "1-0"]
[ECO "D55"]
[WhiteElo "1940"]
[BlackElo "2058"]
[Annotator "RC"]
[PlyCount "113"]
[EventDate "2024.06.21"]
[EventType "swiss"]
[EventCountry "CZE"]
[SourceTitle "playchess.com"]
[Source "ChessBase"]
[SourceQuality "1"]
[TimeControl "40/7200:0"]

1. d4 {[%emt 0:00:00]} d5 {[%emt 0:00:00]} 2. c4 {[%emt 0:00:00]} e6 {[%emt 0:00:00]} 3. Nc3 {[%emt 0:00:00]} Nf6 {[%emt 0:00:00]} 4. Bg5 {[%emt 0:00:00]} Be7 {[%emt 0:00:00]} 5. Nf3 {[%emt 0:00:00]} O-O {[%emt 0:00:00]} 6. e3 {[%emt 0:00:00]} b6 {[%emt 0:00:00]} 7. cxd5 {[%emt 0:00:25]} Nxd5 {[%emt 0:00:00]} 8. Bxe7 {[%emt 0:02:47]} Qxe7 {[%emt 0:00:00]} 9. Rc1 {[%emt 0:11:49]} Bb7 {[%emt 0:00:09]} 10. Bd3 {[%emt 0:00:00]} Nd7 {[%emt 0:00:25]} 11. O-O {[%emt 0:00:00]} Rfd8 {[%emt 0:00:16]} 12. Nxd5 {[%emt 0:08:11]} Bxd5 {[%emt 0:00:45]} 13. e4 {[%emt 0:03:07]} Bb7 {[%emt 0:03:29]} 14. Rxc7 {[%emt 0:01:20]} Rab8 {[%emt 0:00:58]} 15. Qe2 {[%emt 0:03:01]} Qd6 {[%emt 0:00:48]} 16. Rc3 {[%emt 0:00:57]} Qf4 {[%emt 0:04:20]} 17. Re1 {[%emt 0:14:36]} Rbc8 {[%emt 0:03:04]} 18. Qe3 {[%emt 0:11:13]} Qxe3 {[%emt 0:07:42]} 19. Rxe3 {[%emt 0:00:32]} Nf6 {[%emt 0:00:00]} 20. h3 {[%emt 0:05:16]} h6 {[%emt 0:03:20]} 21. Kf1 {[%emt 0:04:01]} g5 {[%emt 0:01:11]} 22. g4 {[%emt 0:15:09]} Kg7 {[%emt 0:03:05]} 23. Ke2 {[%emt 0:00:43]} b5 {[%emt 0:09:42]} 24. Kd2 {[%emt 0:03:03]} a6 {[%emt 0:01:36]} 25. a3 {[%emt 0:07:35]} Rd7 {[%emt 0:04:54]} 26. Rxc8 {[%emt 0:00:23]} Bxc8 {[%emt 0:00:00]} 27. Re1 {[%emt 0:00:05]} Bb7 {[%emt 0:00:00]} 28. Ke3 {[%emt 0:00:00]} Rc7 {[%emt 0:00:07]} 29. Re2 {[%emt 0:01:36]} h5 {[%emt 0:02:39]} 30. gxh5 {[%emt 0:05:39]} Kh6 {[%emt 0:00:06]} 31. Rc2 {[%emt 0:02:46]} Rxc2 {[%emt 0:03:17]} 32. Bxc2 {[%emt 0:00:00]} Nxh5 {[%emt 0:01:13]} 33. Ne5 {[%emt 0:02:18]} Kg7 {[%emt 0:00:20]} 34. Nd3 {[%emt 0:00:00]} Nf6 {[%emt 0:04:59]} 35. Nc5 {[%emt 0:00:39]} Bc8 {[%emt 0:00:00]} 36. Bd1 {[%emt 0:02:40]} Ne8 {[%emt 0:01:03]} 37. f4 {[%emt 0:02:45]} Kh6 {[%emt 0:02:20]} 38. e5 {[%emt 0:01:57]} Nc7 {[%emt 0:00:00]} 39. Bf3 {[%emt 0:00:00]} a5 {[%emt 0:02:32]} 40. b4 {[%emt 0:00:08]} axb4 {[%emt 0:00:00]} 41. axb4 {[%emt 1:59:39]} Nd5+ {[%emt 2:01:16]} 42. Bxd5 {[%emt 0:00:00]} exd5 {[%emt 0:00:00]} 43. Kf3 {[%emt 0:03:39]} Bxh3 {[%emt 0:05:36]} 44. Nb7 {[%emt 0:00:00]} Bd7 {[%emt 0:04:13]} 45. Nd6 {[%emt 0:00:00]} gxf4 {[%emt 0:00:13]} 46. Kxf4 {[%emt 0:00:00]} Kg6 {[%emt 0:00:00]} 47. Nb7 {[%emt 0:00:00]} Be6 {[%emt 0:00:39]} 48. Nc5 {[%emt 0:00:00]} Bc8 {[%emt 0:00:00]} 49. Nd3 {[%emt 0:00:00]} Be6 {[%emt 0:01:09]} 50. Nc1 {[%emt 0:00:00]} Bh3 {[%emt 0:01:30]} 51. Ne2 {[%emt 0:00:00]} Bf1 {[%emt 0:00:00]} 52. Nc3 {[%emt 0:00:00]} Bc4 {[%emt 0:00:00]} 53. Nd1 {[%emt 0:00:00]} Bb3 {[%emt 0:01:48]} 54. Ne3 {[%emt 0:00:00]} Ba2 {[%emt 0:00:00]} 55. Nf5 {[%emt 0:00:00]} Bc4 {[%emt 0:00:36]} 56. Ne7+ {[%emt 0:00:00]} Kg7 {[%emt 0:00:00]} 57. Kg5 {[%emt 0:00:00]} 1-0

[Event "Klatovy Open-C 2024"]
[Site "Klatovy"]
[Date "2024.07.06"]
[Round "8.6"]
[White "Danko, Jiri"]
[Black "Zidu, Jan"]
[Result "1-0"]
[ECO "B45"]
[WhiteElo "1954"]
[BlackElo "1905"]
[Annotator "NA RC"]
[PlyCount "47"]
[EventDate "2024.06.21"]
[EventType "swiss"]
[EventCountry "CZE"]
[SourceTitle "playchess.com"]
[Source "ChessBase"]
[SourceQuality "1"]
[TimeControl "40/7200:0"]

1. e4 {[%emt 0:00:00]} c5 {[%emt 0:00:00]} 2. Nf3 {[%emt 0:00:00]} Nc6 {[%emt 0:00:00]} 3. d4 {[%emt 0:00:00]} cxd4 {[%emt 0:00:00]} 4. Nxd4 {[%emt 0:00:00]} e6 {[%emt 0:00:00]} 5. Nc3 {[%emt 0:00:00]} Nf6 {[%emt 0:00:00]} 6. Nxc6 {[%emt 0:00:00]} bxc6 {[%emt 0:00:00]} 7. Bd3 {[%emt 0:00:00]} d5 {[%emt 0:00:00]} 8. O-O {[%emt 0:00:00]} d4 {[%emt 0:02:22]} 9. Ne2 {[%emt 0:00:00]} e5 {[%emt 0:00:58]} 10. f4 {[%emt 0:00:46]} Bd6 {[%emt 0:00:16]} 11. f5 {[%emt 0:03:38]} Nd7 {[%emt 0:04:03]} 12. c3 {[%emt 0:03:23]} c5 {[%emt 0:01:47]} 13. Qe1 {[%emt 0:08:04]} O-O {[%emt 0:03:30]} 14. Qg3 {[%emt 0:01:56]} Kh8 {[%emt 0:00:47]} 15. Kh1 {[%emt 0:01:23]} a5 {[%emt 0:10:53]} 16. cxd4 {[%emt 0:01:00]} cxd4 {[%emt 0:00:06]} 17. Nxd4 {[%emt 0:00:00]} Nc5 {[%emt 0:02:56]} 18. Nb5 {[%emt 0:02:17]} Bb8 {[%emt 0:00:24]} 19. Bc2 {[%emt 0:03:16]} Ba6 {[%emt 0:03:23]} 20. Rd1 {[%emt 0:00:05]} Qe7 {[%emt 0:02:40]} 21. Nc3 {[%emt 0:00:00]} Qb7 {[%emt 0:03:24]} 22. f6 {[%emt 0:15:15]} gxf6 {[%emt 0:03:17]} 23. Bh6 {[%emt 0:00:00]} Rg8 {[%emt 1:19:14]} 24. Bg7+ 1-0

[Event "Klatovy Open-C 2024"]
[Site "Klatovy"]
[Date "2024.07.06"]
[Round "8.7"]
[White "Novotny, Jaroslav"]
[Black "Vavrinek, Tomas"]
[Result "1-0"]
[ECO "B33"]
[WhiteElo "2172"]
[BlackElo "1827"]
[Annotator "RC"]
[PlyCount "93"]
[EventDate "2024.06.21"]
[EventType "swiss"]
[EventCountry "CZE"]
[SourceTitle "playchess.com"]
[Source "ChessBase"]
[SourceQuality "1"]
[TimeControl "40/7200:0"]

1. e4 {[%emt 0:00:00]} c5 {[%emt 0:01:48]} 2. Nf3 {[%emt 0:00:00]} Nc6 {[%emt 0:00:00]} 3. d4 {[%emt 0:00:00]} cxd4 {[%emt 0:00:00]} 4. Nxd4 {[%emt 0:00:00]} Nf6 {[%emt 0:00:00]} 5. Nc3 {[%emt 0:00:00]} e5 {[%emt 0:00:00]} 6. Ndb5 {[%emt 0:00:00]} d6 {[%emt 0:00:00]} 7. Bg5 {[%emt 0:00:00]} a6 {[%emt 0:00:00]} 8. Na3 {[%emt 0:00:00]} b5 {[%emt 0:00:00]} 9. Nd5 {[%emt 0:00:00]} Be7 {[%emt 0:00:00]} 10. Bxf6 {[%emt 0:00:00]} Bxf6 {[%emt 0:00:00]} 11. c4 {[%emt 0:00:00]} b4 {[%emt 0:00:00]} 12. Nc2 {[%emt 0:00:00]} a5 {[%emt 0:00:00]} 13. g3 {[%emt 0:00:00]} Be6 {[%emt 0:03:23]} 14. Bg2 {[%emt 0:00:00]} O-O {[%emt 0:03:22]} 15. O-O {[%emt 0:00:00]} Bxd5 {[%emt 0:05:11]} 16. Qxd5 {[%emt 0:00:00]} Ne7 {[%emt 0:02:28]} 17. Qd3 {[%emt 0:00:00]} Qb6 {[%emt 0:05:00]} 18. Rad1 {[%emt 0:00:00]} Rfd8 {[%emt 0:03:08]} 19. h4 {[%emt 0:00:00]} a4 {[%emt 0:03:30]} 20. b3 {[%emt 0:00:00]} Qc5 {[%emt 0:04:19]} 21. Rd2 {[%emt 0:00:00]} Nc6 {[%emt 0:02:27]} 22. Rfd1 {[%emt 0:01:58]} Be7 {[%emt 0:00:00]} 23. Qe2 {[%emt 0:04:03]} axb3 {[%emt 0:02:25]} 24. axb3 {[%emt 0:02:29]} Ra2 {[%emt 0:00:00]} 25. Rd5 {[%emt 0:23:14]} Qb6 {[%emt 0:05:58]} 26. Qd3 {[%emt 0:01:12]} Qc7 {[%emt 0:03:50]} 27. Rd2 {[%emt 0:02:21]} Rda8 {[%emt 0:00:02]} 28. Bh3 {[%emt 0:06:31]} Rb2 {[%emt 0:00:28]} 29. c5 {[%emt 0:01:02]} dxc5 {[%emt 0:11:32]} 30. Rd7 {[%emt 0:00:06]} Qb6 {[%emt 0:00:24]} 31. Qd5 {[%emt 0:09:41]} g6 {[%emt 0:07:02]} 32. Rxe7 {[%emt 0:01:07]} Rf8 {[%emt 0:06:07]} 33. Rxf7 {[%emt 0:16:38]} Rxf7 {[%emt 0:01:46]} 34. Be6 {[%emt 0:00:00]} Nd4 {[%emt 0:08:48]} 35. Bxf7+ {[%emt 0:00:00]} Kg7 {[%emt 0:00:02]} 36. Nxd4 {[%emt 0:10:02]} Rxd2 {[%emt 0:00:32]} 37. Ne6+ {[%emt 0:00:00]} Kxf7 {[%emt 0:00:00]} 38. Ng5+ {[%emt 0:00:00]} Ke7 {[%emt 0:02:17]} 39. Qxd2 {[%emt 0:00:17]} h6 {[%emt 0:00:53]} 40. Nf3 {[%emt 0:00:00]} Qe6 {[%emt 0:00:18]} 41. Qd3 {[%emt 2:00:37]} Kf6 {[%emt 2:00:16]} 42. Kg2 {[%emt 0:00:10]} h5 {[%emt 0:00:00]} 43. Nd2 {[%emt 0:02:08]} Qc6 {[%emt 0:00:37]} 44. Nc4 {[%emt 0:00:04]} Qe6 {[%emt 0:00:14]} 45. Qd6 {[%emt 0:00:18]} Qxd6 {[%emt 0:00:00]} 46. Nxd6 {[%emt 0:00:00]} Ke6 {[%emt 0:00:00]} 47. Nc4 {[%emt 0:36:02]} 1-0

[Event "Klatovy Open-C 2024"]
[Site "Klatovy"]
[Date "2024.07.06"]
[Round "8.8"]
[White "Fiser, Jiri"]
[Black "Havelka, Petr"]
[Result "0-1"]
[ECO "B01"]
[WhiteElo "2134"]
[BlackElo "1851"]
[Annotator "RC"]
[PlyCount "92"]
[EventDate "2024.06.21"]
[EventType "swiss"]
[EventCountry "CZE"]
[SourceTitle "playchess.com"]
[Source "ChessBase"]
[SourceQuality "1"]
[TimeControl "40/7200:0"]

1. e4 {[%emt 0:00:00]} d5 {[%emt 0:00:00]} 2. exd5 {[%emt 0:00:00]} Qxd5 {[%emt 0:00:00]} 3. Nc3 {[%emt 0:00:00]} Qd8 {[%emt 0:00:00]} 4. d4 {[%emt 0:00:00]} Nf6 {[%emt 0:00:00]} 5. Bc4 {[%emt 0:00:00]} e6 {[%emt 0:00:00]} 6. Nf3 {[%emt 0:00:00]} Bb4 {[%emt 0:00:00]} 7. Bd2 {[%emt 0:00:00]} O-O {[%emt 0:00:00]} 8. Qe2 {[%emt 0:00:00]} a6 {[%emt 0:07:57]} 9. a3 {[%emt 0:03:46]} Bxc3 {[%emt 0:03:04]} 10. Bxc3 {[%emt 0:00:11]} b5 {[%emt 0:00:32]} 11. Bd3 {[%emt 0:00:09]} Bb7 {[%emt 0:01:06]} 12. h4 {[%emt 0:07:18]} Nbd7 {[%emt 0:06:02]} 13. O-O-O {[%emt 0:01:30]} Nb6 {[%emt 0:03:50]} 14. Rhg1 {[%emt 0:17:30]} Qd5 {[%emt 0:05:31]} 15. Nd2 {[%emt 0:00:43]} Na4 {[%emt 0:08:12]} 16. f3 {[%emt 0:29:15]} Qa2 {[%emt 0:08:15]} 17. Nb1 {[%emt 0:12:45]} Nd5 {[%emt 0:01:59]} 18. Qe4 {[%emt 0:06:11]} g6 {[%emt 0:02:27]} 19. Qe5 {[%emt 0:00:00]} Ndxc3 {[%emt 0:02:41]} 20. bxc3 {[%emt 0:00:33]} Rac8 {[%emt 0:08:13]} 21. Qf6 {[%emt 0:06:15]} Nb6 {[%emt 0:06:38]} 22. h5 {[%emt 0:03:17]} Nd7 {[%emt 0:02:37]} 23. Qe7 {[%emt 0:01:04]} Bc6 {[%emt 0:04:39]} 24. hxg6 {[%emt 0:01:11]} fxg6 {[%emt 0:02:06]} 25. Rh1 {[%emt 0:01:59]} Rf7 {[%emt 0:02:40]} 26. Qh4 {[%emt 0:00:00]} Nf8 {[%emt 0:01:43]} 27. Rde1 {[%emt 0:00:44]} Qd5 {[%emt 0:01:30]} 28. Nd2 {[%emt 0:01:01]} Qd6 {[%emt 0:01:14]} 29. Kb2 {[%emt 0:00:00]} a5 {[%emt 0:02:04]} 30. Ne4 {[%emt 0:04:27]} Bxe4 {[%emt 0:00:33]} 31. Rxe4 {[%emt 0:00:16]} b4 {[%emt 0:00:07]} 32. axb4 {[%emt 0:00:49]} axb4 {[%emt 0:00:00]} 33. c4 {[%emt 0:00:00]} Ra8 {[%emt 0:00:49]} 34. c5 {[%emt 0:03:00]} Qd5 {[%emt 0:00:23]} 35. Ra1 {[%emt 0:00:00]} Rxa1 36. Kxa1 {[%emt 0:00:00]} Qa8+ {[%emt 0:00:00]} 37. Kb1 {[%emt 0:00:00]} c6 {[%emt 0:03:17]} 38. Kc1 {[%emt 0:02:26]} Qa1+ {[%emt 0:00:22]} 39. Kd2 {[%emt 0:00:00]} Qc3+ {[%emt 0:00:00]} 40. Ke2 {[%emt 0:00:00]} b3 {[%emt 0:00:45]} 41. cxb3 {[%emt 1:58:53]} Qxb3 {[%emt 1:59:57]} 42. Ke3 {[%emt 0:04:50]} Qb2 {[%emt 0:00:07]} 43. Qh1 {[%emt 0:00:55]} Ra7 {[%emt 0:00:11]} 44. g3 {[%emt 0:00:51]} Ra1 {[%emt 0:00:10]} 45. Bf1 {[%emt 0:01:24]} Re1+ {[%emt 0:02:47]} 46. Kf4 {[%emt 0:00:00]} Qc1+ {[%emt 0:00:00]} 0-1

[Event "Klatovy Open-C 2024"]
[Site "Klatovy"]
[Date "2024.07.06"]
[Round "8.9"]
[White "Berka, Lubos"]
[Black "Novy, Jaroslav"]
[Result "1-0"]
[ECO "E61"]
[WhiteElo "1835"]
[BlackElo "1654"]
[Annotator "NA RC"]
[PlyCount "45"]
[EventDate "2024.06.21"]
[EventType "swiss"]
[EventCountry "CZE"]
[SourceTitle "playchess.com"]
[Source "ChessBase"]
[SourceQuality "1"]
[TimeControl "40/7200:0"]

1. Nf3 {[%emt 0:00:00]} Nf6 {[%emt 0:00:00]} 2. c4 {[%emt 0:00:00]} d6 {[%emt 0:00:19]} 3. Nc3 {[%emt 0:00:00]} g6 {[%emt 0:00:52]} 4. d4 {[%emt 0:00:00]} Bg7 {[%emt 0:00:57]} 5. e3 {[%emt 0:00:00]} c6 {[%emt 0:00:40]} 6. Bd3 {[%emt 0:00:00]} O-O {[%emt 0:00:00]} 7. O-O {[%emt 0:00:00]} Qc7 {[%emt 0:08:07]} 8. e4 {[%emt 0:01:52]} Bg4 {[%emt 0:02:26]} 9. Re1 {[%emt 0:04:38]} e5 {[%emt 0:00:55]} 10. d5 {[%emt 0:00:43]} Nbd7 {[%emt 0:00:30]} 11. h3 {[%emt 0:05:37]} Bxf3 {[%emt 0:00:00]} 12. Qxf3 {[%emt 0:01:04]} Nc5 {[%emt 0:04:25]} 13. b3 {[%emt 0:07:52]} Nxd3 {[%emt 0:02:06]} 14. Qxd3 {[%emt 0:00:00]} Nd7 {[%emt 0:00:00]} 15. Rd1 {[%emt 0:01:13]} f5 {[%emt 0:01:11]} 16. dxc6 {[%emt 0:02:30]} bxc6 {[%emt 0:23:34]} 17. Qxd6 {[%emt 0:00:28]} Qa5 {[%emt 0:09:00]} 18. b4 {[%emt 0:05:11]} Qa6 {[%emt 0:04:29]} 19. Qe6+ {[%emt 0:01:25]} Kh8 {[%emt 1:00:29]} 20. Rxd7 {[%emt 1:27:27]} Rae8 {[%emt 0:00:00]} 21. Qd6 {[%emt 0:00:00]} Qxc4 {[%emt 0:00:00]} 22. Bb2 {[%emt 0:00:00]} fxe4 {[%emt 0:00:00]} 23. Qc5 {[%emt 0:00:00]} 1-0

[Event "Klatovy Open-C 2024"]
[Site "Klatovy"]
[Date "2024.07.06"]
[Round "8.10"]
[White "Novotny, Jaromir"]
[Black "Kriha, Pavel"]
[Result "1/2-1/2"]
[ECO "B12"]
[WhiteElo "1788"]
[BlackElo "1877"]
[Annotator "NA RC"]
[PlyCount "23"]
[EventDate "2024.06.21"]
[EventType "swiss"]
[EventCountry "CZE"]
[SourceTitle "playchess.com"]
[Source "ChessBase"]
[SourceQuality "1"]
[TimeControl "40/7200:0"]

1. e4 {[%emt 0:00:00]} c6 {[%emt 0:00:00]} 2. d4 {[%emt 0:00:00]} d5 {[%emt 2:00:00]} 3. e5 {[%emt 2:00:00]} Bf5 {[%emt 0:00:00]} 4. Ne2 {[%emt 0:00:00]} e6 {[%emt 0:00:00]} 5. Ng3 {[%emt 0:00:00]} Bg6 {[%emt 0:00:00]} 6. h4 {[%emt 0:00:00]} h6 {[%emt 0:00:00]} 7. h5 {[%emt 0:00:00]} Bh7 {[%emt 0:00:00]} 8. Bd3 {[%emt 0:00:00]} Bxd3 {[%emt 0:00:00]} 9. cxd3 {[%emt 0:00:00]} Bb4+ {[%emt 0:00:00]} 10. Nc3 {[%emt 0:00:00]} c5 {[%emt 0:00:00]} 11. dxc5 {[%emt 0:00:00]} Qa5 {[%emt 0:00:00]} 12. O-O {[%emt 0:00:00]} 1/2-1/2